bitfinex/quotes_ETHUSD_20220226
["timestamp","ask_amount","ask_price","bid_price","bid_amount"]
[1645899261523,2.42270114,2784.4,2784.1,2.6947508]
[1645899261927,1.51798972,2784.4,2784.1,2.6947508]
[1645899262526,1.51798972,2784.3,2784.1,2.6947508]
[1645899262723,1.51798972,2784.2,2784.1,2.6947508]
[1645899262975,1.51798972,2784.2,2784.1,2.6447508]
[1645899263169,1.51798972,2784.4,2784.1,2.6447508]
[1645899263371,1.51798972,2784.3,2784.1,2.6447508]
[1645899263575,1.51798972,2784.2,2784.1,2.6447508]
[1645899263975,2.42270114,2784.4,2784.1,2.6447508]
[1645899264176,1.51798972,2784.3,2784.1,2.6447508]
[1645899264380,1.51798972,2784.2,2784.1,2.6447508]
[1645899264782,0.90471142,2784.4,2784.1,2.6447508]
[1645899264783,2.42270114,2784.4,2784.1,2.6447508]
[1645899264978,1.51798972,2784.3,2784.1,2.6447508]
[1645899265179,1.51798972,2784.2,2784.1,2.6447508]
[1645899265379,1.51798972,2784.2,2784.1,1.7965005]
[1645899265579,1.51798972,2784.4,2784.1,1.7965005]
[1645899265983,2.42270114,2784.4,2784.1,1.7965005]
[1645899266182,1.51798972,2784.3,2784.1,1.7965005]
[1645899266380,1.51798972,2784.2,2784.1,1.7965005]
[1645899266581,2.42270114,2784.4,2784.1,1.7965005]
[1645899266839,1.51798972,2784.3,2784.1,1.7965005]
[1645899267035,1.51798972,2784.2,2784.1,1.7965005]
[1645899267235,2.42270114,2784.4,2784.1,1.7965005]
[1645899267438,1.51798972,2784.3,2784.1,1.7965005]
[1645899267637,1.51798972,2784.2,2784.1,1.7965005]
[1645899267838,2.42270114,2784.4,2784.1,0.17727398]
[1645899268035,1.51798972,2784.3,2784.1,0.17727398]
[1645899268236,0.00510271,2784.5,2784.1,0.17727398]
[1645899268237,1.51798972,2784.2,2784.1,0.17727398]
[1645899268836,2.42270114,2784.4,2784.1,0.17727398]
[1645899269037,1.51798972,2784.3,2784.1,0.17727398]
[1645899269335,1.51798972,2784.2,2784.1,0.17727398]
[1645899269546,1.51798972,2784.3,2784.1,0.17727398]
[1645899269739,1.51798972,2784.2,2784.1,0.17727398]
[1645899269943,1.51798972,2784.4,2784.1,0.17727398]
[1645899270783,0.67773539,2784.2,2784.1,0.17727398]
[1645899271184,0.67773539,2784.3,2784.1,0.17727398]
[1645899271385,2.19572511,2784.2,2784.1,0.17727398]
[1645899271584,0.67773539,2784.2,2784.1,0.17727398]
[1645899273591,2.19572511,2784.2,2784.1,0.17727398]
[1645899273789,0.67773539,2784.2,2784.1,0.17727398]
[1645899274090,0.67773539,2784.2,2784.1,0.69327398]
[1645899274317,1.51798972,2784.4,2784.1,0.69327398]
[1645899274318,2.19572511,2784.3,2784.1,0.69327398]
[1645899274517,1.51798972,2784.2,2784.1,0.69327398]
[1645899274717,0.67773539,2784.3,2784.1,0.69327398]
[1645899275722,2.19572511,2784.3,2784.1,0.69327398]
[1645899275921,1.51798972,2784.2,2784.1,0.69327398]
[1645899276322,0.67773539,2784.3,2784.1,0.69327398]
[1645899276925,2.19572511,2784.3,2784.1,0.69327398]
[1645899277126,1.51798972,2784.2,2784.1,0.69327398]
[1645899277325,0.67773539,2784.3,2784.1,0.69327398]
[1645899277730,0.67773539,2784.2,2784.1,0.69327398]
[1645899278170,2.19572511,2784.2,2784.1,0.69327398]
[1645899278469,1.51798972,2784.2,2784.1,0.69327398]
[1645899278673,0.67773539,2784.2,2784.1,0.69327398]
[1645899278873,0.67773539,2784.2,2784.1,0.17727398]
[1645899279071,1.51798972,2784.2,2784.1,0.17727398]
[1645899279273,0.90471142,2784.4,2784.1,0.17727398]
[1645899279274,1.51798972,2784.3,2784.1,0.17727398]
[1645899279474,1.51798972,2784.2,2784.1,0.17727398]
[1645899279771,1.51798972,2784.2,2784.0,0.87553398]
[1645899279971,2.19615249,2784.1,2783.9,1.79656]
[1645899280173,1.51798972,2784.0,2783.8,0.00510399]
[1645899280378,1.51798972,2784.0,2783.7,4.6348873]
[1645899280379,1.51798972,2783.9,2783.7,4.6348873]
[1645899280574,0.67816277,2784.0,2783.7,4.6348873]
[1645899280575,0.67816277,2784.0,2783.8,0.00510386]
[1645899281581,2.19630059,2784.0,2783.7,4.6348873]
[1645899281822,1.51813782,2783.9,2783.8,0.00510377]
[1645899282020,0.67816277,2784.0,2783.8,0.00510377]
[1645899282824,0.67816277,2784.0,2783.7,4.6348873]
[1645899283030,0.67816277,2784.0,2783.8,0.00510377]
[1645899283224,2.42284924,2784.2,2783.8,0.00510377]
[1645899283225,2.19630059,2783.9,2783.8,0.00510377]
[1645899283424,0.67816277,2783.9,2783.8,0.00510377]
[1645899284023,0.67816277,2783.9,2783.7,4.4912873]
[1645899284225,0.67816277,2783.9,2783.7,4.49639112]
[1645899284828,2.67321295,2784.4,2783.7,0.00510382]
[1645899284829,5.69630059,2783.8,2783.7,0.00510382]
[1645899285025,5.01813782,2783.8,2783.7,0.00862548]
[1645899285224,5.01813782,2783.8,2783.6,0.54442588]
[1645899285475,5.01813782,2783.7,2783.6,0.5495298]
[1645899286276,1.51813782,2783.7,2783.6,0.54442588]
[1645899286681,1.51813782,2783.7,2783.6,0.4258605]
[1645899287878,1.51813782,2783.7,2783.5,1.50688446]
[1645899287879,5.01813782,2783.7,2783.5,1.50688446]
[1645899288079,3.5,2783.6,2783.5,2.05426913]
[1645899288287,5.01813782,2783.6,2783.5,2.05426913]
[1645899288477,1.51813782,2783.6,2783.5,2.05426913]
[1645899288683,1.51813782,2783.6,2783.5,2.04916511]
[1645899288881,1.51813782,2783.6,2783.5,1.44595347]
[1645899289081,1.51813782,2783.7,2783.5,1.44595347]
[1645899289319,1.51813782,2783.7,2783.5,1.39595347]
[1645899289520,2.19657305,2783.6,2783.5,1.39595347]
[1645899289721,1.51813782,2783.6,2783.5,1.39595347]
[1645899289925,2.42284924,2783.8,2783.5,1.39595347]
[1645899290522,1.09586643,2783.9,2783.5,1.35811747]
[1645899290523,0.6783305,2783.6,2783.5,1.35811747]
[1645899290720,2.19646832,2783.6,2783.5,1.35811747]
[1645899291120,0.6783305,2783.7,2783.5,1.30811747]
[1645899291320,0.6783305,2783.7,2783.5,2.1687967]
[1645899291521,2.19646832,2783.7,2783.5,2.13188935]
[1645899291730,1.51813782,2783.6,2783.5,2.13188935]
[1645899291928,0.6783305,2783.7,2783.5,2.13188935]
[1645899292127,0.6783305,2783.7,2783.5,2.10298354]
[1645899292730,0.6783305,2783.7,2783.5,2.10808761]
[1645899293179,1.51813782,2783.6,2783.5,2.10808761]
[1645899293586,0.6783305,2783.6,2783.5,1.2702667]
[1645899295582,1.51813782,2783.6,2783.5,1.2702667]
[1645899295783,0.6783305,2783.7,2783.5,1.2702667]
[1645899295983,1.85261908,2783.7,2783.5,1.2702667]
[1645899296188,1.51813782,2783.6,2783.5,1.2702667]
[1645899296384,0.6783305,2783.7,2783.5,1.2702667]
[1645899296585,0.6783305,2783.7,2783.5,1.44598717]
[1645899297434,0.6783305,2783.7,2783.5,1.45075751]
[1645899298435,0.6783305,2783.7,2783.5,1.44598717]
[1645899298637,1.51813782,2783.6,2783.5,1.45075751]
[1645899298842,0.6783305,2783.8,2783.5,1.45075751]
[1645899299638,0.6783305,2783.8,2783.5,1.44598717]
[1645899299941,4.1783305,2783.7,2783.5,0.55215496]
[1645899300142,5.01813782,2783.6,2783.5,0.55215496]
[1645899300881,1.51813782,2783.6,2783.5,0.54738467]
[1645899301278,1.51813782,2783.7,2783.5,0.54738467]
[1645899301483,1.51813782,2783.6,2783.5,0.54738467]
[1645899301783,5.92284924,2783.6,2783.5,0.54738467]
[1645899302090,1.51813782,2783.6,2783.5,0.54738467]
[1645899302883,2.19588864,2783.6,2783.5,0.54738467]
[1645899303282,1.51813782,2783.6,2783.5,0.54738467]
[1645899303482,5.01813782,2783.6,2783.5,0.54738467]
[1645899303683,5.01813782,2783.6,2783.4,0.00478645]
[1645899303684,8.5,2783.5,2783.4,0.00478645]
[1645899303887,14.42284924,2783.5,2783.4,0.00478645]
[1645899304088,15.42284924,2783.5,2783.4,0.00478645]
[1645899304331,16.6512097,2783.5,2783.4,0.53588172]
[1645899304729,12.24649828,2783.5,2783.4,0.53588172]
[1645899305345,13.14947666,2783.5,2783.4,0.53588172]
[1645899305540,15.74649828,2783.5,2783.4,0.53588172]
[1645899305739,11.92067949,2783.5,2783.4,0.53588172]
[1645899306039,2.42067949,2783.5,2783.4,0.53588172]
[1645899306239,1.51813782,2783.5,2783.4,0.53588172]
[1645899306440,2.19515116,2783.5,2783.4,0.53588172]
[1645899306839,0.67701334,2783.5,2783.4,0.53588172]
[1645899307037,0.67701334,2783.5,2783.4,0.28588172]
[1645899307239,1.51813782,2783.5,2783.4,0.28588172]
[1645899307439,0.67689652,2783.5,2783.4,0.28588172]
[1645899307839,0.67689652,2783.5,2782.9,0.46702087]
[1645899308094,0.67689652,2783.4,2782.9,0.36702087]
[1645899308292,2.19503434,2783.3,2782.9,0.8767198]
[1645899308495,0.67689652,2783.3,2782.9,0.87319814]
[1645899308891,0.90254167,2783.5,2782.9,0.87319814]
[1645899308892,2.19503434,2783.2,2782.9,0.87319814]
[1645899309093,1.46813782,2783.1,2782.9,0.87319814]
[1645899309397,0.67689652,2783.2,2783.0,2.20498475]
[1645899309794,0.67689652,2783.3,2783.0,2.20498475]
[1645899310597,0.67689652,2783.2,2783.0,2.20498475]
[1645899311596,1.26387067,2783.4,2783.0,2.20498475]
[1645899311597,0.67689652,2783.3,2783.0,2.20498475]
[1645899311834,0.67689652,2783.2,2783.0,2.20498475]
[1645899312234,0.67689652,2783.2,2783.0,2.15498475]
[1645899312437,1.26387067,2783.4,2783.0,2.15498475]
[1645899312438,0.67689652,2783.3,2783.0,2.15498475]
[1645899312734,0.67689652,2783.2,2783.0,2.15498475]
[1645899313135,0.67689652,2783.2,2783.0,2.16007155]
[1645899313635,0.67689652,2783.3,2783.0,2.16007155]
[1645899314135,0.67689652,2783.3,2783.0,2.15498475]
[1645899314337,0.67689652,2783.3,2783.2,2.20498475]
[1645899314737,0.67689652,2783.3,2783.2,4.3599695]
[1645899314940,0.90254167,2783.5,2783.2,4.3599695]
[1645899315338,0.67582386,2783.3,2783.2,4.3599695]
[1645899316576,1.21941825,2783.7,2783.2,4.3599695]
[1645899316577,0.90254167,2783.4,2783.2,4.3599695]
[1645899316781,0.67567926,2783.3,2783.2,4.3599695]
[1645899316978,2.21941825,2783.7,2783.2,4.3599695]
[1645899316979,0.67567926,2783.4,2783.2,4.3599695]
[1645899317981,0.67567926,2783.3,2783.2,4.36505615]
[1645899318881,0.90254167,2783.5,2783.2,4.3599695]
[1645899319083,0.90254167,2783.4,2783.2,4.3599695]
[1645899319335,3.57299464,2783.7,2783.2,4.3599695]
[1645899319336,0.90254167,2783.5,2783.2,2.15498475]
[1645899319537,0.90254167,2783.5,2783.4,2.20498475]
[1645899319741,0.90254167,2783.6,2783.4,2.20498475]
[1645899320137,4.12557639,2783.8,2783.4,2.20498475]
[1645899320138,0.90254167,2783.5,2783.4,2.20498475]
[1645899323172,2.7816481,2783.7,2783.4,2.20498475]
[1645899323375,0.90206486,2783.5,2783.4,2.20498475]
[1645899323778,1.35357639,2783.7,2783.4,2.20498475]
[1645899323977,1.35357639,2783.7,2783.4,2.21007116]
[1645899324676,3.5,2783.6,2783.4,0.00508641]
[1645899324884,4.85357639,2783.6,2782.8,0.90230686]
[1645899325080,0.67660025,2783.1,2783.0,0.02034869]
[1645899325980,0.67660025,2783.1,2782.8,0.90233926]
[1645899326181,0.67660025,2783.1,2782.8,1.7975676]
[1645899326578,0.67660025,2783.3,2782.8,2.6962142]
[1645899326832,0.67660025,2783.3,2782.8,0.8988176]
[1645899327050,0.67660025,2783.2,2782.8,0.8988176]
[1645899327533,0.67660025,2783.2,2782.8,1.7975576]
[1645899327728,0.67660025,2783.2,2782.8,0.8988176]
[1645899327932,0.67660025,2783.2,2782.6,1.44673388]
[1645899328131,0.67660025,2783.2,2782.6,1.74673388]
[1645899328532,0.67660025,2783.2,2782.6,1.44673388]
[1645899328731,0.67660025,2783.2,2782.8,1.80247718]
[1645899328931,0.67660025,2783.1,2782.8,1.80247718]
[1645899329333,1.51848414,2783.0,2782.8,2.81877305]
[1645899329530,1.51848414,2782.9,2782.8,2.81877305]
[1645899329731,0.67660025,2783.2,2782.8,2.81370467]
[1645899330035,0.67660025,2783.2,2783.0,4.3599695]
[1645899330036,1.51848414,2783.1,2783.0,4.3599695]
[1645899330232,0.67660025,2783.1,2783.0,4.3599695]
[1645899330686,0.67660025,2783.3,2783.0,4.3599695]
[1645899330889,2.19508439,2783.2,2783.0,4.3599695]
[1645899331086,1.51848414,2783.1,2783.0,4.3599695]
[1645899331287,1.51848414,2783.1,2783.0,5.2586678]
[1645899331487,0.67660025,2783.3,2783.0,5.2586678]
[1645899331787,0.67660025,2783.3,2783.0,5.7746678]
[1645899331992,0.67660025,2783.3,2783.0,4.8759695]
[1645899332389,0.67660025,2783.3,2783.0,4.88103764]
[1645899333091,0.67660025,2783.2,2783.0,4.88103764]
[1645899333292,1.51848414,2783.1,2783.0,4.8759695]
[1645899333590,1.51848414,2783.1,2783.0,4.88103764]
[1645899333789,1.51848414,2783.2,2783.0,4.88103764]
[1645899333991,1.51848414,2783.1,2783.0,4.88103764]
[1645899334231,2.19508439,2783.2,2783.0,4.88103764]
[1645899334431,1.51848414,2783.1,2783.0,4.3599695]
[1645899335029,0.67660025,2783.2,2782.8,1.7974088]
[1645899335236,2.19508439,2783.2,2783.1,2.20498475]
[1645899335429,0.67660025,2783.2,2783.1,2.20498475]
[1645899335829,0.90213367,2783.4,2783.1,2.20498475]
[1645899336028,1.51848414,2783.5,2783.1,2.20498475]
[1645899336029,0.67717541,2783.2,2783.1,2.20498475]
[1645899336937,4.17717541,2783.2,2783.1,2.20498475]
[1645899337137,0.67717541,2783.2,2783.1,2.20498475]
[1645899337334,0.67717541,2783.2,2783.1,2.73504959]
[1645899337996,1.51848414,2783.2,2783.1,2.73504959]
[1645899338183,0.90213367,2783.3,2783.1,2.73504959]
[1645899338584,4.40213367,2783.3,2783.1,2.73504959]
[1645899338791,4.40213367,2783.3,2782.5,0.03048115]
[1645899338792,12.0,2783.1,2782.3,2.93642949]
[1645899338989,12.0,2783.1,2782.2,6.962258]
[1645899338990,0.67729348,2782.5,2782.2,6.962258]
[1645899339193,0.67729348,2782.5,2782.2,5.962258]
[1645899339194,0.67729348,2782.3,2782.2,5.962258]
[1645899339387,1.51848414,2782.3,2782.2,5.962258]
[1645899339688,1.51848414,2782.3,2782.2,107.26163457]
[1645899340089,1.51848414,2782.3,2782.2,107.61943457]
[1645899340492,0.67729348,2782.7,2782.2,107.91943457]
[1645899340690,2.19817493,2782.8,2782.3,0.516]
[1645899340889,1.51848414,2782.7,2782.3,100.516]
[1645899341090,1.51848414,2782.6,2782.3,100.816]
[1645899341289,1.51848414,2782.5,2782.4,100.0]
[1645899341981,0.67729348,2782.9,2782.4,100.0]
[1645899341982,0.0050393,2782.8,2782.4,100.0]
[1645899342182,2.20081692,2782.8,2782.4,100.0]
[1645899342382,1.51848414,2782.7,2782.4,100.0]
[1645899342582,1.51848414,2782.7,2782.4,103.25902008]
[1645899342987,2.19577762,2782.8,2782.5,100.0]
[1645899343183,1.51848414,2782.7,2782.5,100.0]
[1645899343582,1.51848414,2782.7,2782.5,100.8988208]
[1645899344085,1.51848414,2782.7,2782.6,100.0]
[1645899345885,2.19577762,2782.7,2782.6,100.0]
[1645899346086,2.19577762,2782.7,2782.6,99.49244899]
[1645899346287,1.51848414,2782.7,2782.6,99.49244899]
[1645899346689,2.19601459,2782.7,2782.6,99.49244899]
[1645899346887,2.19601459,2782.7,2782.5,99.4974852]
[1645899347087,2.19601459,2782.6,2782.5,3.26405629]
[1645899347288,1.51848414,2782.6,2782.5,3.26405629]
[1645899347489,0.67753045,2782.6,2782.5,3.26405629]
[1645899347688,2.19601459,2782.7,2782.5,103.25902008]
[1645899347888,2.19601459,2782.6,2782.5,101.63912764]
[1645899348092,2.19601459,2782.6,2782.5,1.63912764]
[1645899348288,0.67753045,2782.6,2782.5,1.63912764]
[1645899348488,0.67753045,2782.6,2782.4,1.1988307]
[1645899348690,2.19601459,2782.6,2782.5,100.0]
[1645899348893,0.67753045,2782.6,2782.5,100.0]
[1645899349638,0.67753045,2782.6,2782.4,100.0]
[1645899350039,0.67753045,2782.6,2782.4,100.8988301]
[1645899350237,2.19601459,2782.6,2782.4,100.8988301]
[1645899350443,0.67753045,2782.6,2782.5,100.0]
[1645899352848,0.67753045,2782.7,2782.5,100.0]
[1645899353124,0.67753045,2782.7,2782.6,16.016]
[1645899353125,1.51861645,2782.7,2782.6,16.016]
[1645899353521,1.51861645,2782.7,2782.6,116.016]
[1645899353822,1.51861645,2782.7,2782.6,104.016]
[1645899354021,1.51861645,2782.7,2782.6,100.516]
[1645899354621,1.51861645,2782.7,2782.6,101.4147129]
[1645899354820,1.51861645,2782.7,2782.6,101.7147129]
[1645899355121,0.90213367,2783.2,2782.8,1.02977019]
[1645899355320,0.90213367,2783.2,2782.8,2.82722019]
[1645899355722,0.90213367,2783.2,2782.9,0.8987198]
[1645899355930,2.42054914,2783.2,2782.9,0.8987198]
[1645899356121,1.51841547,2783.1,2782.9,0.8987198]
[1645899356323,1.51841547,2783.0,2782.9,0.8987198]
[1645899356739,1.51841547,2783.1,2782.9,104.3987198]
[1645899356941,1.51841547,2783.0,2782.9,100.8987198]
[1645899357140,1.51841547,2783.0,2782.9,1.7147198]
[1645899357344,1.51841547,2783.1,2782.9,101.4147198]
[1645899357552,1.51841547,2783.0,2782.9,102.3134298]
[1645899357740,1.51841547,2783.0,2782.9,2.6134298]
[1645899358140,0.00493726,2783.1,2783.0,12.0]
[1645899358346,0.00493726,2783.1,2783.0,16.316]
[1645899358549,0.90213367,2783.7,2783.0,17.4643]
[1645899358842,0.90213367,2783.8,2783.2,2.6955589]
[1645899359042,0.90213367,2783.8,2783.3,1.73548536]
[1645899359242,0.90213367,2783.8,2783.3,2.03548536]
[1645899359642,0.90213367,2783.8,2783.3,2.93399536]
[1645899360044,0.00469988,2783.7,2783.3,1.41451]
[1645899360249,5.0,2783.6,2782.4,1.79734]
[1645899360508,5.0,2783.6,2782.5,7.36760196]
[1645899360509,0.90213367,2783.3,2782.5,7.36760196]
[1645899360695,0.90213367,2783.3,2782.8,1.797522]
[1645899360895,0.85213367,2783.4,2782.8,5.297522]
[1645899361100,1.35357639,2783.7,2783.4,1.23335452]
[1645899361495,5.55516362,2783.8,2783.0,1.2372]
[1645899361697,1.35357639,2783.7,2783.0,1.5372]
[1645899361898,1.35357639,2783.7,2783.1,0.8986582]
[1645899362301,0.00471598,2783.5,2783.1,0.8986582]
[1645899362600,0.00471598,2783.5,2783.4,1.19090175]
[1645899363002,0.00471598,2783.5,2783.1,0.8986582]
[1645899363204,0.67754819,2783.2,2783.1,0.8986582]
[1645899363901,0.67754819,2783.2,2783.0,1.2372]
[1645899364102,0.67754819,2783.2,2782.9,0.89869]
[1645899364340,0.67754819,2783.2,2783.0,1.05034246]
[1645899364739,0.68226442,2783.2,2783.0,1.05034246]
[1645899365741,0.67754819,2783.1,2783.0,1.05034246]
[1645899367988,0.67754819,2783.1,2782.8,0.32942744]
[1645899368180,0.67754819,2783.1,2782.9,1.10452924]
[1645899369682,0.67754819,2783.0,2782.9,1.10452924]
[1645899369982,0.67754819,2783.0,2782.8,0.32942744]
[1645899370181,0.67754819,2783.0,2782.9,100.0]
[1645899370786,0.68226352,2783.1,2782.9,100.0]
[1645899370986,0.68226352,2783.1,2783.0,1.03564344]
[1645899371390,0.68227555,2783.1,2783.0,1.03564344]
[1645899371842,0.67756022,2783.1,2783.0,1.03564344]
[1645899372443,0.67756022,2783.1,2782.8,0.32942744]
[1645899372844,0.90337817,2783.3,2782.9,0.3578]
[1645899373052,1.772,2783.8,2783.0,3.47103358]
[1645899373053,2.67537817,2783.8,2783.0,3.47103358]
[1645899373252,3.2516,2784.4,2783.3,0.6578]
[1645899373253,0.90337817,2784.0,2783.3,0.6578]
[1645899373447,1.35724686,2784.2,2783.5,0.3578]
[1645899373448,0.00367047,2784.1,2783.5,0.3578]
[1645899373643,0.00367047,2784.1,2783.6,4.3738]
[1645899373845,0.90337817,2784.2,2783.6,4.6738]
[1645899374054,0.90337817,2784.2,2783.8,0.89813]
[1645899374250,0.00367047,2784.3,2784.0,1.0]
[1645899374456,4.22573357,2784.9,2784.2,5.0]
[1645899374457,0.00374087,2784.8,2784.2,5.0]
[1645899374646,0.00374087,2784.8,2784.3,10.8198]
[1645899374846,2.42914792,2784.9,2784.3,10.8198]
[1645899375045,1.35357639,2785.2,2784.3,10.8198]
[1645899375247,0.00374087,2785.1,2784.9,2.11666129]
[1645899375511,0.00374087,2785.1,2784.4,6.7085]
[1645899375512,1.35357639,2785.1,2784.4,6.7085]
[1645899375695,0.00471395,2784.7,2784.4,3.9816]
[1645899376493,1.35357639,2784.9,2784.4,3.9816]
[1645899376900,0.00471397,2784.7,2784.4,3.92108453]
[1645899377801,1.35357639,2784.9,2784.4,3.92108453]
[1645899378003,0.00471397,2784.7,2784.4,4.81933233]
[1645899378201,1.51796194,2784.6,2784.4,4.81933233]
[1645899378403,1.51796194,2784.6,2784.4,0.8982478]
[1645899379099,1.51796194,2784.5,2784.4,0.8982478]
[1645899379341,0.00471401,2784.6,2784.4,1.44002444]
[1645899379537,1.51796194,2784.5,2784.4,1.44002444]
[1645899380342,0.00471399,2784.6,2784.5,12.0]
[1645899380548,1.35357639,2785.6,2784.7,0.3578]
[1645899380740,1.51753769,2785.5,2785.0,0.89778]
[1645899380939,1.51753769,2785.5,2785.1,0.516]
[1645899381138,1.51753769,2785.6,2785.1,0.516]
[1645899381337,1.51753769,2785.5,2785.1,0.816]
[1645899381539,1.51753769,2785.4,2785.1,0.816]
[1645899381741,1.51753769,2785.3,2785.1,2.31174]
[1645899381963,1.51753769,2785.2,2784.6,6.4730877]
[1645899382146,2.42839486,2785.0,2784.6,3.7794]
[1645899382346,1.51753769,2784.9,2784.6,3.7794]
[1645899382749,1.51753769,2784.9,2784.6,4.05666745]
[1645899383000,0.6748117,2784.8,2784.6,4.95484745]
[1645899383387,0.6748117,2784.8,2784.6,2.31374745]
[1645899384187,2.19234939,2784.9,2784.6,2.31374745]
[1645899384389,1.51753769,2784.8,2784.6,3.21179745]
[1645899384593,1.51753769,2784.7,2784.6,3.51179745]
[1645899384785,3.10320656,2785.0,2784.6,3.51179745]
[1645899384786,1.51753769,2784.9,2784.6,3.51179745]
[1645899384987,1.51753769,2784.8,2784.6,3.51179745]
[1645899385189,1.51753769,2784.7,2784.6,3.51179745]
[1645899385591,1.51753769,2784.7,2784.5,0.8981847]
[1645899385789,1.51753769,2784.7,2784.1,4.2211354]
[1645899385990,1.51753769,2784.6,2784.1,3.2211354]
[1645899386288,1.51753769,2784.5,2784.1,2.9711354]
[1645899386487,1.51753769,2784.4,2784.1,2.9711354]
[1645899386742,1.51753769,2784.3,2784.1,1.7965354]
[1645899386943,4.1835635,2784.7,2784.0,2.547]
[1645899386944,1.51753769,2784.2,2784.0,2.547]
[1645899387155,5.01753769,2784.1,2783.6,0.53695323]
[1645899387454,0.67380164,2783.8,2783.6,0.53695323]
[1645899387646,0.88160164,2783.8,2783.6,0.53695323]
[1645899387844,1.51753769,2783.7,2783.6,0.53695323]
[1645899388067,5.0,2783.6,2782.8,0.09478401]
[1645899388243,5.01753769,2783.5,2782.9,0.00348967]
[1645899388445,1.51753769,2783.4,2782.9,0.00348967]
[1645899388747,1.51753769,2783.4,2782.8,0.63557411]
[1645899389044,1.51753769,2783.3,2782.8,0.63557411]
[1645899389247,1.51753769,2783.2,2782.9,0.00348967]
[1645899389443,1.51753769,2783.1,2782.8,0.63557411]
[1645899389649,1.51753769,2783.0,2782.8,0.63906378]
[1645899389846,1.51753769,2782.9,2782.8,1.53420411]
[1645899390050,0.00240916,2783.1,2782.9,100.0]
[1645899390250,0.00240916,2783.1,2782.8,1.53420411]
[1645899390891,1.51837846,2783.3,2782.8,1.53420411]
[1645899391094,1.51837846,2783.2,2782.8,1.53420411]
[1645899391292,4.17380164,2783.6,2782.8,1.53420411]
[1645899391293,1.52078762,2783.1,2782.8,1.53769378]
[1645899391495,0.00240916,2783.1,2782.8,1.83420411]
[1645899392090,1.51832824,2783.5,2782.8,1.83420411]
[1645899392296,1.51832824,2783.4,2782.9,0.89864]
[1645899392492,0.00502673,2783.1,2782.9,0.89864]
[1645899393393,0.67380164,2783.8,2782.9,0.89864]
[1645899393596,0.00502668,2783.1,2783.0,0.8986522]
[1645899393792,1.5233482,2783.1,2783.0,0.8986522]
[1645899394631,1.51832152,2783.1,2783.0,0.8986522]
[1645899394840,1.51832152,2783.1,2782.8,0.54581751]
[1645899395032,0.00502663,2783.2,2782.8,0.54581751]
[1645899395033,1.51832152,2783.0,2782.8,0.54581751]
[1645899395339,1.51832152,2782.9,2782.8,0.54581751]
[1645899395530,1.51832152,2783.1,2782.8,0.54581751]
[1645899395732,1.51832152,2783.0,2782.8,0.5407901]
[1645899395934,1.51832152,2782.9,2782.8,0.54427977]
[1645899396134,1.51832152,2782.9,2782.8,0.5407901]
[1645899396334,1.51832152,2782.9,2782.8,100.5407901]
[1645899397641,5.01832152,2782.9,2782.7,1.80241642]
[1645899397848,5.01832152,2782.8,2782.7,0.00502732]
[1645899398095,3.29032152,2782.8,2782.7,0.00502732]
[1645899398295,1.51832152,2782.8,2782.3,0.00348967]
[1645899398494,1.51832152,2782.7,2782.6,0.00502742]
[1645899399095,1.51832152,2782.9,2782.6,0.00502742]
[1645899399495,1.51832152,2782.9,2782.3,0.00348967]
[1645899399694,4.17380164,2783.1,2782.3,0.00348967]
[1645899399695,1.51832152,2782.8,2782.3,0.00348967]
[1645899399895,5.01832152,2782.7,2782.2,5.962258]
[1645899400100,1.51832152,2782.6,2782.2,5.96574767]
[1645899400297,1.51832152,2782.6,2782.2,5.962258]
[1645899400695,1.51832152,2782.8,2782.2,5.962258]
[1645899400895,1.51832152,2782.5,2782.3,0.00502403]
[1645899401096,1.51832152,2782.4,2782.3,0.00502403]
[1645899401297,3.5,2782.4,2782.3,0.00502403]
[1645899401505,3.5,2782.4,2782.2,5.962258]
[1645899401506,5.01832152,2782.4,2782.2,2.73440212]
[1645899401729,5.01832152,2782.3,2782.2,2.73440212]
[1645899402135,6.01832152,2782.3,2782.2,2.73440212]
[1645899402345,12.0,2782.2,2781.9,0.00348967]
[1645899402540,6.01832152,2782.3,2781.5,0.20348967]
[1645899402541,8.5,2782.0,2781.5,0.20348967]
[1645899402741,1.772,2781.8,2780.6,8.04314768]
[1645899402937,5.01832152,2781.7,2780.6,8.04314768]
[1645899403135,1.51832152,2781.6,2780.6,8.04314768]
[1645899403338,1.51832152,2781.6,2780.6,4.44720808]
[1645899403339,3.5,2781.5,2780.6,4.44720808]
[1645899403538,1.51832152,2781.4,2780.6,2.65820808]
[1645899403735,3.5,2781.3,2780.6,0.55000808]
[1645899403935,3.5,2781.3,2780.3,1.7989259]
[1645899403936,1.51832152,2781.2,2780.3,1.7989259]
[1645899404144,3.6438,2781.1,2780.1,0.25]
[1645899404341,3.6438,2781.1,2780.0,28.96703314]
[1645899404342,0.89994,2780.7,2780.0,28.96703314]
[1645899404540,1.66212152,2780.6,2780.0,28.96703314]
[1645899404752,1.51832152,2780.5,2780.0,28.96703314]
[1645899405144,3.5,2781.0,2780.0,29.81663314]
[1645899405354,1.51973492,2780.9,2780.0,29.81663314]
[1645899405612,3.5,2780.8,2780.0,29.81663314]
[1645899405815,1.51973492,2780.7,2780.1,0.00502605]
[1645899406015,1.51973492,2781.1,2780.1,0.00502605]
[1645899406210,5.01973492,2781.0,2780.1,0.00502605]
[1645899406512,1.51973492,2780.9,2780.3,0.899484]
[1645899406712,1.0,2781.2,2780.3,1.798974]
[1645899406911,5.01977555,2781.1,2780.4,0.00502577]
[1645899407112,1.51977555,2781.0,2780.4,0.00502577]
[1645899407316,1.51977555,2780.9,2780.4,0.00502577]
[1645899407511,1.51977555,2781.0,2780.4,0.00502577]
[1645899407713,3.5,2780.9,2780.4,0.00502577]
[1645899407918,1.51977555,2780.8,2780.1,1.4365]
[1645899408112,0.01304783,2780.2,2780.1,1.45660551]
[1645899408713,0.01304783,2780.2,2780.1,1.15660551]
[1645899408917,0.01304783,2780.2,2780.1,0.02010551]
[1645899409114,0.01304783,2780.2,2780.0,28.91703314]
[1645899409535,0.01304783,2780.2,2780.0,28.92205928]
[1645899410240,0.01304783,2780.2,2780.0,12.03019042]
[1645899410455,0.01304783,2780.2,2779.5,0.00347916]
[1645899410456,5.1438,2780.1,2779.5,0.00347916]
[1645899410647,2.432555,2779.8,2778.3,0.47507916]
[1645899410855,1.52034688,2779.7,2778.3,0.47507916]
[1645899411045,1.52034688,2779.7,2777.9,3.7160663]
[1645899411046,0.01219072,2779.3,2778.4,0.04035807]
[1645899411545,5.4159,2779.6,2778.1,0.04206334]
[1645899411743,6.272,2779.6,2778.0,0.516]
[1645899411944,1.772,2779.6,2778.9,1.40255388]
[1645899412145,2.432555,2779.8,2779.1,0.89988]
[1645899412542,2.432555,2779.8,2779.2,3.5]
[1645899412743,2.432555,2779.8,2779.0,3.6439]
[1645899413015,2.432555,2779.8,2779.2,2.69924]
[1645899413214,2.432555,2779.8,2779.3,0.516]